Cogmind - Beta 11 X7 @@@ ROGUE MODE // 2021.09.14 @ 03:03:13 Player: underestimated Overheat Result: Self-destructed Performance ------------- Evolutions (5) 2500 Regions Visited (18) 3600 Robots Destroyed (432) 2160 Value Destroyed (14393) 14393 Prototype IDs (50) 1000 Alien Tech Used (0) 0 Bonus (4278) 4278 TOTAL SCORE: 27931 Bonus ------- Triggered High Security 500 High Alert Combat Kills 2818 Follower Combat Kills 205 Entered Garrisons 200 Used RIF Installer 500 Met Data Miner 300 Friendly Fire -245 Cogmind --------- Core Integrity 41/1000 Matter 163/300 Energy 81/325 System Corruption 28% Temperature Cool (0) Movement Rolling (130) Ox2 Location -5/Factory Parts ------- > --- POWER (2) -------- Antimatter Reactor > --- PROPULSION (2) --- Armored Huge Wheel > --- UTILITY (7) ------ Advanced Heat Sink Advanced Heat Sink High-capacity Storage Unit Dimensional Manipulator Advanced Sensor Array Experimental Signal Interpreter Experimental Targeting Computer > --- WEAPON (6) ------- High-powered Electrolaser Precision Phase Gun Heavy Rocket Launcher Heavy Missile Launcher > --- INVENTORY (20) --- Compact Wheel Advanced Matter Compressor (400) Dimensional Manipulator Experimental Signal Interpreter Reactive Plating EM Disruption Field Relay Coupler [NC] (27) Relay Coupler [NC] (18) Long-range Tractor Beam Wave Gun Advanced Plasma Rifle PD Laser Precision Phase Gun Heavy Rocket Launcher Heavy Rocket Launcher Point Singularity Launcher Remote Datajack Peak State ------------ > --- POWER ------------ Improved Quantum Reactor Improved Quantum Reactor > --- PROPULSION ------- Armored Huge Wheel > --- UTILITY ---------- Advanced Heat Sink High-capacity Storage Unit Dimensional Manipulator Experimental Signal Interpreter Experimental Targeting Computer Matter Filter EM Disruption Field > --- WEAPON ----------- Gatling Laser High-powered Electrolaser Advanced Plasma Rifle Advanced Plasma Rifle Precision Phase Gun Precision Phase Gun > --- INVENTORY -------- Antimatter Reactor Improved Quantum Reactor Compact Wheel Advanced Matter Compressor Dimensional Manipulator Experimental Signal Interpreter Reactive Plating Relay Coupler [NC] Relay Coupler [NC] Long-range Tractor Beam Wave Gun PD Laser Heavy Missile Launcher Point Singularity Launcher Remote Datajack Plasma Sword [Rating: 123] Favorites ----------- Power F-cell Engine Engine F-cell Engine Power Core Light Fission Core Reactor Cold Fusion Reactor Propulsion Armored Wheel Treads Light Treads Leg Aluminum Leg Wheel Armored Wheel Hover Unit Aerolev Unit Flight Unit Improved VTOL Module Utility Advanced Heat Sink Device Advanced Heat Sink Storage High-capacity Storage Unit Processor Experimental Targeting Computer Hackware Experimental Hacking Suite Protection Improved Utility Shielding Weapon Force Rifle Energy Gun Force Rifle Energy Cannon Cooled Plasma Cannon Ballistic Gun Light Assault Rifle Ballistic Cannon Mini Assault Cannon Launcher Heavy Missile Launcher Impact Weapon Thunder Hammer Slashing Weapon Plasma Sword Build | -11 -10 -10 -9 -9 -8 -8 -8 -7 -7 -7 -6 -6 -6 -6 -6 -6 -5 -5 ------- Run | Scr Mat Min Mat Min Mat Sto Gar Fac Was Fac Fac Was Fac Low Low Dat Pro Fac Slots Evolved 10 | . . . 2 . 2 . . 2 . . 2 . . . . . . 2 Power 1 | . . . . . . . . . . . 1 . . . . . . . Propulsion . | . . . . . . . . . . . . . . . . . . . Utility 5 | . . . . . 2 . . 2 . . 1 . . . . . . . Weapon 4 | . . . 2 . . . . . . . . . . . . . . 2 Parts Attached 364 | 4 20 . 29 7 10 28 22 12 10 57 16 . 44 5 12 . 17 71 Power 40 | 1 2 . 3 . . 2 2 1 . 5 1 . 10 . 1 . 3 9 Engine 24 | 1 2 . 3 . . 1 2 1 . 4 1 . 6 . 1 . 2 . Core 8 | . . . . . . 1 . . . . . . 4 . . . 1 2 Reactor 8 | . . . . . . . . . . 1 . . . . . . . 7 Propulsion 46 | . 5 . 8 4 2 2 1 1 . 5 1 . 12 . 1 . 1 3 Treads 16 | . 3 . 7 2 . . . . . . . . 2 . . . 1 1 Leg 3 | . 2 . . . . . 1 . . . . . . . . . . . Wheel 23 | . . . . 2 2 1 . 1 . 3 1 . 10 . 1 . . 2 Hover 1 | . . . 1 . . . . . . . . . . . . . . . Flight 3 | . . . . . . 1 . . . 2 . . . . . . . . Utility 119 | 2 4 . 2 . 6 6 4 8 7 23 7 . 15 3 3 . 5 24 Device 73 | 2 2 . 1 . 4 2 2 6 4 16 3 . 7 2 2 . 2 18 Storage 7 | . 2 . 1 . . . . . . 1 2 . . . . . . 1 Processor 10 | . . . . . . . . 1 . 2 1 . 1 1 . . . 4 Hackware 3 | . . . . . . . . . . . . . 3 . . . . . Protection 26 | . . . . . 2 4 2 1 3 4 1 . 4 . 1 . 3 1 Artifact . | . . . . . . . . . . . . . . . . . . . Weapon 159 | 1 9 . 16 3 2 18 15 2 3 24 7 . 7 2 7 . 8 35 Energy Gun 54 | . 5 . 1 . . 3 4 1 2 4 5 . 6 1 3 . 5 14 Energy Cannon 14 | . . . . . . 2 3 . . 2 . . . . 3 . 2 2 Ballistic Gun 58 | 1 4 . 15 2 1 11 4 . . 10 2 . . 1 . . . 7 Ballistic Cannon 4 | . . . . . . . . . . 4 . . . . . . . . Launcher 22 | . . . . 1 1 2 3 1 1 2 . . . . . . 1 10 Special Weapon . | . . . . . . . . . . . . . . . . . . . Impact Weapon 2 | . . . . . . . . . . . . . 1 . . . . 1 Slashing Weapon 5 | . . . . . . . 1 . . 2 . . . . 1 . . 1 Piercing Weapon . | . . . . . . . . . . . . . . . . . . . Special Melee Weapon . | . . . . . . . . . . . . . . . . . . . Unidentified Prototypes 38 | . . . 3 . . 5 . 2 3 10 1 . 3 1 . . . 10 Parts Lost 59 | . 1 . . . . . 9 . 2 9 . . 4 1 . . 8 25 Power 9 | . . . . . . . 1 . 1 1 . . . . . . 2 4 Propulsion 6 | . . . . . . . 1 . . 1 . . 2 . . . 1 1 Utility 17 | . . . . . . . 2 . 1 1 . . 2 . . . 3 8 Weapon 27 | . 1 . . . . . 5 . . 6 . . . 1 . . 2 12 Highest Loss Streak 14 | . 1 . . . . . 5 . 1 8 . . 2 1 . . 7 14 Average Slot Usage (%) 94 | . 98 100 99 99 99 99 81 91 83 81 92 93 98 99 99 100 94 91 Engine 8 | . 14 14 10 11 9 4 8 7 3 3 6 6 11 13 12 13 10 . Core 1 | . . . . . . 4 . . . . . . 1 . . . . 4 Reactor 1 | . . . . . . . . . . 2 6 6 . . . . . 4 Treads 4 | . 25 28 22 21 . . . . . . . . . . . . 2 1 Wheel 7 | . . . . . 18 18 13 7 7 7 6 6 11 13 13 13 7 3 Device 18 | . 14 14 11 11 14 9 9 14 20 16 24 26 21 21 20 20 19 24 Storage 8 | . 12 14 11 11 9 9 9 7 7 9 12 6 6 6 6 6 6 5 Processor 2 | . . . . . . . . . . 2 . 6 . 4 6 6 6 7 Hackware 1 | . . . . . . . . . . . . . 5 6 6 6 3 . Protection 7 | . . . . . 12 17 14 23 14 5 7 6 11 6 6 6 8 . Energy Gun 13 | . 10 . . . . . 6 30 29 6 3 26 25 21 25 26 20 17 Energy Cannon 1 | . . . . . . . 3 . . 1 . . . . . . 5 4 Ballistic Gun 12 | . 16 28 43 43 35 35 15 . . 11 5 . . 4 . . . 8 Ballistic Cannon 2 | . . . . . . . . . . 10 17 . . . . . . . Naked Turns . | . . . . . . . . . . . . . . . . . . . Heaviest Build 117 | 11 30 30 42 40 49 53 55 65 67 99 114 104 117 116 99 96 103 114 Greatest Support 75 | 20 40 40 40 40 24 24 24 28 28 28 28 28 75 24 28 28 75 75 Greatest Overweight (x) 38 | . 1 . 1 1 2 3 4 5 2 3 4 3 38 4 4 3 3 3 Average Overweight (x) 2 | . . . . . 2 1 2 2 1 1 3 3 5 3 3 3 2 2 Largest Inventory Capacity 20 | 8 15 15 15 15 15 15 15 15 15 15 20 20 20 20 20 20 20 20 Average Capacity 17 | 7 8 15 15 15 15 15 15 15 15 15 18 20 20 20 20 20 20 20 Most Carried 20 | 7 9 12 15 15 15 15 15 15 15 15 20 20 20 20 20 20 20 20 Average Carried 15 | 5 6 10 12 14 14 14 14 14 14 13 15 20 19 19 19 20 16 18 Final Capacity 20 | 5 15 15 15 15 15 15 15 15 15 15 20 20 20 20 20 20 20 20 Final Carried 20 | 5 9 12 14 15 15 15 12 14 14 15 20 20 20 20 20 20 12 19 Class Distribution -------------------- 55% | Tank 11% | Mutant 9% | Gunner 6% | Scavenger-Gunner 6% | Scavenger-Executioner 4% | Scavenger-Tank Dominant Class ---------------- Mutant | -10/Materials Mutant | -10/Mines Scavenger-Gunner | -9/Materials Tank | -9/Mines Tank | -8/Materials Tank | -8/Storage Mutant | -8/Garrison Tank | -7/Factory Tank | -7/Waste Tank | -7/Factory Tank | -6/Factory Tank | -6/Waste Tank | -6/Factory Gunner | -6/Lower Caves Gunner | -6/Lower Caves Gunner | -6/Data Miner Scavenger-Tank | -5/Proximity Caves Scavenger-Executioner | -5/Factory Resources | -11 -10 -10 -9 -9 -8 -8 -8 -7 -7 -7 -6 -6 -6 -6 -6 -6 -5 -5 ----------- Run | Scr Mat Min Mat Min Mat Sto Gar Fac Was Fac Fac Was Fac Low Low Dat Pro Fac Matter Collected 9436 | 262 265 123 576 277 268 1098 498 197 80 2493 968 . 605 78 120 . 187 1341 Remotely 78 | 40 38 . . . . . . . . . . . . . . . . . Salvage Created 20569 | 130 451 124 814 495 369 1426 543 463 839 3431 880 . 4603 445 414 . 1406 3736 Parts 950 | 11 23 15 47 30 21 79 18 19 7 206 47 . 186 20 18 . 46 157 Haulers Intercepted 39 | . 2 . 4 . 2 6 . 2 . 10 . . 8 . . . . 5 Recyclers Shooed 17 | . . 1 2 1 . 1 . . . 1 1 . 5 . . . . 5 Parts Field Recycled . | . . . . . . . . . . . . . . . . . . . Retrieved Matter . | . . . . . . . . . . . . . . . . . . . Parts Self-Destructed 65 | . . . . . . . . . . . . . . 18 16 . 31 . Prevented 3 | . . . . . . . . . . . . . . . 3 . . . Kills | -11 -10 -10 -9 -9 -8 -8 -8 -7 -7 -7 -6 -6 -6 -6 -6 -6 -5 -5 ------- Run | Scr Mat Min Mat Min Mat Sto Gar Fac Was Fac Fac Was Fac Low Low Dat Pro Fac Combat Hostiles Destroyed 283 | . 9 8 13 7 3 17 15 8 3 54 19 . 27 7 7 . 30 56 Guns 199 | . 8 8 13 3 3 17 6 7 1 35 6 . 27 7 7 . 22 29 Cannons 34 | . . . . . . . 3 . . 15 13 . . . . . 2 1 AOE 39 | . 1 . . 4 . . 6 . . 2 . . . . . . 5 21 Classes Destroyed 22 | 2 4 . 1 3 1 . 1 1 1 4 1 . . . 1 . 1 1 Worker 31 | . . . . 3 . 2 . 1 . 8 . . 8 . . . . 9 Builder 26 | . . . . 1 . 2 . . . 10 . . 5 . . . . 8 Tunneler 6 | 3 . . . 2 . . . . . 1 . . . . . . . . Hauler 39 | . 2 . 4 . 2 6 . 2 . 10 . . 8 . . . . 5 Recycler 31 | 1 . . 1 3 2 2 . . . 3 2 . 10 . . . . 7 Mechanic 4 | . . . . . . . . . . 1 . . 1 . . . . 2 Operator 2 | . . . . . . . . . . . 1 . 1 . . . . . Watcher 11 | . 1 . . . . 1 . . . 3 . . 4 . . . . 2 Swarmer 58 | . 2 8 1 4 . . . . . 12 7 . 3 . . . 8 13 Cutter 3 | . . . . . . . 3 . . . . . . . . . . . Saboteur 1 | . . . . . . . . . . . . . . . . . . 1 Grunt 106 | . 7 . 8 2 . 10 6 3 . 23 2 . 11 2 4 . 9 19 Brawler 3 | . . . . . . . . . . 1 . . . . . . 2 . Duelist 13 | . . . . 1 . . 5 . . 1 . . 1 . . . 2 3 Protector 3 | . . . . . . . . . . 1 . . . . . . . 2 Sentry 27 | . . . 4 . 2 5 1 3 . 3 3 . 3 1 . . 1 1 Specialist 10 | . . . . . . . . . . 5 2 . . . . . . 3 Hunter 19 | . . . . . 1 2 . 1 . 2 1 . 3 2 1 . 1 5 Programmer 30 | . . . . . . . . 1 . 6 4 . 6 2 1 . 1 9 Compactor 3 | . . . . . . . . . 3 . . . . . . . . . Thief 1 | . . . . . . . . . . . . . . . 1 . . . Thug 5 | . . . 1 . . . . . . . . . . . . . 4 . Butcher 1 | . . . . . . . . . . . . . . . . . 1 . Mutant 1 | . . . . . . . . . . . . . . . . . 1 . Best Kill Streak 29 | 2 3 3 4 4 2 7 5 4 1 17 5 . 10 3 2 . 12 29 Combat Bots Only 15 | . 3 3 2 4 1 3 5 4 1 12 5 . 4 3 2 . 12 15 Max Kills in Single Turn 6 | 1 2 1 1 2 1 2 2 1 1 6 1 . 2 1 1 . 2 6 Gunslinging 2 | . . . . . . 1 . . . 2 . . . . . . 1 1 Exploded 4 | . 1 . . 2 . . 2 . . 2 . . . . . . 2 4 Melee . | . . . . . . . . . . . . . . . . . . . Uniques/NPCs Destroyed . | . . . . . . . . . . . . . . . . . . . Combat | -11 -10 -10 -9 -9 -8 -8 -8 -7 -7 -7 -6 -6 -6 -6 -6 -6 -5 -5 -------- Run | Scr Mat Min Mat Min Mat Sto Gar Fac Was Fac Fac Was Fac Low Low Dat Pro Fac Damage Taken 15143 | . 552 235 240 244 143 777 960 323 107 2975 566 . 1020 471 220 . 1536 4774 Core 2107 | . 41 63 25 72 12 121 94 84 . 273 81 . 70 101 20 . 91 959 Absorbed by Shields 1576 | . . . . 94 54 214 75 81 . . 328 . 437 221 . . 37 35 Reduced by Siege Mode 86 | . . . . . . . . . . . . . . . . . 28 58 Core Remaining (%) 66 | 100 . 58 . 75 . . 58 . . 49 . . . . . . 57 . Volleys Fired 751 | 11 50 19 39 22 14 74 41 19 8 145 32 3 98 16 14 . 41 105 Largest 6 | 2 2 2 4 4 4 4 4 4 4 4 4 4 4 4 4 . 4 6 Hottest 514 | 40 80 40 89 89 99 111 320 320 320 320 320 320 320 305 295 . 306 514 Shots Fired 2693 | 22 100 38 156 75 56 289 96 72 32 531 127 12 386 62 56 . 148 435 Gun 2368 | 22 100 38 156 73 54 286 76 72 32 380 49 12 386 62 51 . 133 386 Cannon 283 | . . . . . . 1 16 . . 145 78 . . . 5 . 12 26 Launcher 42 | . . . . 2 2 2 4 . . 6 . . . . . . 3 23 Special . | . . . . . . . . . . . . . . . . . . . Kinetic 1454 | 22 74 38 156 73 54 286 59 . . 452 103 . . 7 . . . 130 Thermal 1171 | . . . . . . 1 33 72 32 73 24 12 386 55 56 . 145 282 Explosive 36 | . . . . 2 2 2 4 . . . . . . . . . 3 23 Electromagnetic 32 | . 26 . . . . . . . . 6 . . . . . . . . Robot Hit Streak 41 | 4 8 5 13 18 5 11 18 19 19 19 8 3 14 9 12 . 18 41 Robot Miss Streak 8 | 3 4 3 6 1 7 4 5 3 3 7 8 3 3 3 2 . 2 4 Penetration Max 1 | . . . . . . 1 . . . . . . . . . . . . Secondary Targets 38 | . 2 . 2 1 . 4 1 . . 8 . . 3 2 . . 7 8 Max Gunslinging Chain 2 | . 1 . 1 1 . 1 1 . . 2 . . 1 1 . . 1 1 Shots Hit Robots 1585 | 14 64 21 91 49 25 173 48 62 31 292 60 6 209 37 35 . 104 264 Core Hits 811 | 10 26 9 38 21 16 53 28 33 14 163 32 . 101 12 15 . 67 173 Critical Kills 15 | . . . 1 . . 2 . . . 1 . . 9 . . . 1 1 Critical Parts Destroyed 26 | . . . 1 . . . . . . 3 . . 15 2 . . . 5 Critical Strikes 76 | . 1 . 2 . . 2 . . . 6 1 . 24 2 1 . 10 27 Burn 31 | . . . . . . . . . . . . . . . 1 . 9 21 Meltdown 2 | . . . . . . . . . . . . . . . . . 1 1 Destroy 39 | . . . 2 . . 2 . . . 4 . . 24 2 . . . 5 Blast 3 | . . . . . . . . . . 2 1 . . . . . . . Corrupt 1 | . 1 . . . . . . . . . . . . . . . . . Melee Attacks 4 | . . . . . . . 1 . . 1 . . 1 . 1 . . . Impact 1 | . . . . . . . . . . . . . 1 . . . . . Slashing 3 | . . . . . . . 1 . . 1 . . . . 1 . . . Piercing . | . . . . . . . . . . . . . . . . . . . Sneak Attacks . | . . . . . . . . . . . . . . . . . . . Combat Hostiles . | . . . . . . . . . . . . . . . . . . . Follow-up Attacks . | . . . . . . . . . . . . . . . . . . . Damage Inflicted 41643 | 122 738 278 1060 960 421 2845 1569 1181 864 7857 1674 144 5717 896 790 . 3381 11146 Guns 29686 | 122 671 260 1042 713 282 2804 639 1181 864 4770 554 144 5717 896 727 . 2124 6176 Cannons 4203 | . . . . . . . 367 . . 1855 1120 . . . 63 . 256 542 Explosions 7683 | . 66 . . 213 139 41 563 . . 1232 . . . . . . 1001 4428 Melee . | . . . . . . . . . . . . . . . . . . . Ramming 71 | . 1 18 18 34 . . . . . . . . . . . . . . Kinetic 14889 | 122 497 260 1042 713 282 2804 443 . . 5375 1413 . . 108 . . . 1830 Thermal 20298 | . 66 . . . . . 563 1181 864 2039 261 144 5717 788 790 . 2380 5505 Explosive 5768 | . . . . 213 139 41 563 . . . . . . . . . 1001 3811 Electromagnetic 617 | . 174 . . . . . . . . 443 . . . . . . . . Impact . | . . . . . . . . . . . . . . . . . . . Slashing . | . . . . . . . . . . . . . . . . . . . Piercing . | . . . . . . . . . . . . . . . . . . . Highest Corruption 28 | . . . . . . 3 3 . . 5 3 3 5 3 . . 3 28 Average Corruption 4 | . . . . . . 2 3 . . 4 2 3 3 1 . . 2 16 Corruption Purged 12 | . . . . . . . . . . 5 . . 4 3 . . . . Effects 209 | . . . . . . 17 9 . . 16 37 2 69 2 . . 8 49 Message Errors 70 | . . . . . . 5 2 . . 7 14 1 25 . . . 3 13 Matter Fused 35 | . . . . . . 1 5 . . 2 7 . 13 . . . 1 6 Heat Flow Errors 28 | . . . . . . . 1 . . 3 2 . 14 . . . 3 5 Energy Discharges 28 | . . . . . . 3 . . . 3 9 . 4 1 . . . 8 Parts Rejected 2 | . . . . . . . . . . . . . 1 . . . . 1 Data Loss (minor) 26 | . . . . . . 7 1 . . . 4 1 8 . . . 1 4 Data Loss (major) 6 | . . . . . . . . . . . . . 3 . . . . 3 Misfires 4 | . . . . . . . . . . 1 . . 1 . . . . 2 Weapon Failures 10 | . . . . . . 1 . . . . 1 . . 1 . . . 7 Overload Shots . | . . . . . . . . . . . . . . . . . . . Overflow Damage 707 | . . . . . 3 1 8 . . 324 23 . . . 12 . 74 262 Projectiles 95 | . . . . . . . . . . 60 23 . . . 12 . . . Explosions 612 | . . . . . 3 1 8 . . 264 . . . . . . 74 262 Melee . | . . . . . . . . . . . . . . . . . . . Knockbacks 27 | . . 1 1 . . . . . . 16 9 . . . . . . . Impact 2 | . . 1 1 . . . . . . . . . . . . . . . Kinetic 25 | . . . . . . . . . . 16 9 . . . . . . . Secondary . | . . . . . . . . . . . . . . . . . . . Self-Inflicted Damage 651 | . . . . . . . 188 . . 1 . . . . . . 162 300 Shots 16 | . . . . . . . 4 . . 1 . . . . . . 3 8 Rammed 14 | . 2 3 2 6 . . . . . . . . 1 . . . . . Targets Rammed 14 | . 2 3 2 6 . . . . . . . . 1 . . . . . Kicked . | . . . . . . . . . . . . . . . . . . . Crushed . | . . . . . . . . . . . . . . . . . . . Highest Temperature 938 | . 25 . 54 101 84 287 466 419 . 308 167 173 504 269 355 . 353 938 Average Temperature 99 | . 10 . 13 43 37 56 131 140 . 83 56 87 124 97 95 . 120 157 Received Heat Transfer 2918 | . 252 . 114 64 12 316 150 128 . 582 54 . 63 51 84 . 390 658 Effects 22 | . . . . . . . 1 4 . . . . 7 . . . 1 9 Shutdowns 1 | . . . . . . . 1 . . . . . . . . . . . Energy Bleed 3 | . . . . . . . . . . . . . 2 . . . . 1 Interference 5 | . . . . . . . . 4 . . . . . . . . . 1 Short Circuit 2 | . . . . . . . . . . . . . 1 . . . . 1 Damage (minor) 2 | . . . . . . . . . . . . . . . . . 1 1 Damage (major) 7 | . . . . . . . . . . . . . 4 . . . . 3 Damage (core) 2 | . . . . . . . . . . . . . . . . . . 2 Siege Activations 5 | . . . . . . . . . . . . . 1 . . . 1 3 Total Turns 85 | . . . . . . . . . . . . . 7 . . . 22 56 Longest Duration 25 | . . . . . . . . . . . . . 7 . . . 22 25 Robots Corrupted 2 | . . . . . . . . . . 2 . . . . . . . . Combat Hostiles 2 | . . . . . . . . . . 2 . . . . . . . . Parts Fried 1 | . . . . . . . . . . 1 . . . . . . . . Impact Corruptions . | . . . . . . . . . . . . . . . . . . . Robots Melted 13 | . . . . . . . . 1 2 . . . 2 . . . 1 7 Combat Hostiles 9 | . . . . . . . . 1 2 . . . . . . . 1 5 Parts Melted 102 | . . . . . . . 4 7 5 7 2 . 36 7 4 . 11 19 Heat Transferred 34336 | . . . . . . . 1000 2675 1950 3137 370 222 8511 1147 1542 . 4824 8958 Parts Sabotaged 3 | . . . . . . . . . . . . . . . . . 3 . Parts Stolen 1 | . . . . . . . . . . . . . . . 1 . . . Parts Stripped . | . . . . . . . . . . . . . . . . . . . Power Chain Reactions 1 | . 1 . . . . . . . . . . . . . . . . . Missiles Intercepted . | . . . . . . . . . . . . . . . . . . . Alert | -11 -10 -10 -9 -9 -8 -8 -8 -7 -7 -7 -6 -6 -6 -6 -6 -6 -5 -5 ------- Run | Scr Mat Min Mat Min Mat Sto Gar Fac Was Fac Fac Was Fac Low Low Dat Pro Fac Peak Influence 1701 | 20 130 185 318 242 118 375 550 443 151 1617 1188 419 439 . . . . 1701 Initial 770 | . 13 50 39 82 33 11 29 288 151 91 770 404 293 . . . . 66 Average 391 | 9 77 79 180 109 29 142 376 354 143 864 736 408 317 . . . . 516 Maximum Alert Level 5 | . . . 1 1 . 1 2 2 . 5 4 2 2 . . . . 5 Low Security (%) 37 | 100 100 100 47 95 100 63 15 . 100 14 . . 12 . . . . 42 Level 1 32 | . . . 52 4 . 36 35 66 . 15 7 . 75 . . . . 21 Level 2 13 | . . . . . . . 48 33 . 18 38 100 11 . . . . 5 Level 3 5 | . . . . . . . . . . 3 38 . . . . . . 2 Level 4 10 | . . . . . . . . . . 46 15 . . . . . . 27 Level 5 . | . . . . . . . . . . . . . . . . . . . High Security . | . . . . . . . . . . . . . . . . . . . Max Security . | . . . . . . . . . . . . . . . . . . . Squads Dispatched 61 | . 4 . 3 . . 4 . 2 . 12 6 . 18 . . . 1 11 Investigation 9 | . 3 . 1 . . 1 . . . 1 . . 1 . . . . 2 Extermination 18 | . . . . . . . . 1 . 4 3 . 8 . . . . 2 Reinforcement 22 | . 1 . 2 . . 2 . 1 . 7 3 . 2 . . . . 4 Assault 4 | . . . . . . . . . . . . . . . . . 1 3 Garrison 8 | . . . . . . 1 . . . . . . 7 . . . . . Intercept . | . . . . . . . . . . . . . . . . . . . Construction Impeded 4 | . . . . . . . . . . 3 . . . . . . . 1 Haulers Reinforced 5 | . . . . . . . . 1 . 2 . . 1 . . . . 1 Active Scanning Responses . | . . . . . . . . . . . . . . . . . . . Cargo Convoy Interrupts 3 | . . . . . . . . . . 1 1 . . . . . . 1 Stealth | -11 -10 -10 -9 -9 -8 -8 -8 -7 -7 -7 -6 -6 -6 -6 -6 -6 -5 -5 --------- Run | Scr Mat Min Mat Min Mat Sto Gar Fac Was Fac Fac Was Fac Low Low Dat Pro Fac Distress Signals 20 | . 3 . 2 . . 3 . 1 . 3 2 . 3 . . . . 3 Communications Jammed . | . . . . . . . . . . . . . . . . . . . Distress Signals . | . . . . . . . . . . . . . . . . . . . Times Spotted 387 | . 18 10 28 7 8 27 15 12 6 75 20 6 36 7 8 . 32 72 Peak Tracking Total 11 | . 5 3 4 4 3 4 9 4 3 9 4 6 3 3 4 . 9 11 Tactical Retreats 13 | . . 1 1 . 1 . 2 . . 5 . 1 1 . 1 . . . Traps | -11 -10 -10 -9 -9 -8 -8 -8 -7 -7 -7 -6 -6 -6 -6 -6 -6 -5 -5 ------- Run | Scr Mat Min Mat Min Mat Sto Gar Fac Was Fac Fac Was Fac Low Low Dat Pro Fac Traps Triggered 23 | . 1 . . . . 4 7 1 . 3 2 . 4 . . . . 1 Indirectly . | . . . . . . . . . . . . . . . . . . . Trap Hack Attempts . | . . . . . . . . . . . . . . . . . . . Triggered . | . . . . . . . . . . . . . . . . . . . Disarmed . | . . . . . . . . . . . . . . . . . . . Reprogrammed . | . . . . . . . . . . . . . . . . . . . Reused . | . . . . . . . . . . . . . . . . . . . Traps Extracted . | . . . . . . . . . . . . . . . . . . . Installed . | . . . . . . . . . . . . . . . . . . . Triggered 4 | . . . . . . . . . . . 3 . . . 1 . . . Machines | -11 -10 -10 -9 -9 -8 -8 -8 -7 -7 -7 -6 -6 -6 -6 -6 -6 -5 -5 ---------- Run | Scr Mat Min Mat Min Mat Sto Gar Fac Was Fac Fac Was Fac Low Low Dat Pro Fac Machines Disabled 28 | . . . . . . 5 1 . . 4 1 . 5 . . . 1 11 Max in Single Turn 4 | . . . . . . 1 1 . . 4 1 . 1 . . . 1 3 Garrison Access 2 | . . . . . . . . 1 . . . . . . . . . 1 Garrison Relay 1 | . . . . . . . 1 . . . . . . . . . . . Machines Sabotaged . | . . . . . . . . . . . . . . . . . . . Garrisons Compromised 1 | . . . . . . . . . . . 1 . . . . . . . Overloaded Fab Kills . | . . . . . . . . . . . . . . . . . . . Fab Network Shutdowns . | . . . . . . . . . . . . . . . . . . . Hacking | -11 -10 -10 -9 -9 -8 -8 -8 -7 -7 -7 -6 -6 -6 -6 -6 -6 -5 -5 --------- Run | Scr Mat Min Mat Min Mat Sto Gar Fac Was Fac Fac Was Fac Low Low Dat Pro Fac Machines Accessed 55 | . 7 . 6 . 4 9 . 5 . 5 2 . 5 . . 3 . 9 Terminals 32 | . 4 . 4 . 3 7 . 3 . 3 1 . 3 . . . . 4 Fabricators 5 | . . . . . . . . 1 . 1 . . 1 . . . . 2 Repair Stations 2 | . 1 . . . . 1 . . . . . . . . . . . . Recycling Units 6 | . 2 . 1 . . . . . . . 1 . 1 . . . . 1 Scanalyzers 3 | . . . 1 . 1 . . . . 1 . . . . . . . . Garrison Access 4 | . . . . . . 1 . 1 . . . . . . . . . 2 Total Hacks 152 | . 21 . 17 . 19 26 . 5 . 9 5 . 16 . . 19 . 15 Successful 92 | . 13 . 11 . 12 13 . 1 . 2 2 . 10 . . 19 . 9 Failed 60 | . 8 . 6 . 7 13 . 4 . 7 3 . 6 . . . . 6 Catastrophic 9 | . . . . . . 1 . 2 . 3 1 . 1 . . . . 1 Database Lockouts . | . . . . . . . . . . . . . . . . . . . Manual 71 | . 16 . 9 . 9 11 . 1 . 6 2 . 8 . . . . 9 Terminals 88 | . 16 . 14 . 12 18 . 3 . 5 3 . 11 . . . . 6 Fabricators 10 | . . . . . . . . 1 . 3 . . 3 . . . . 3 Repair Stations 8 | . 3 . . . . 5 . . . . . . . . . . . . Recycling Units 9 | . 2 . 1 . . . . . . . 2 . 2 . . . . 2 Scanalyzers 10 | . . . 2 . 7 . . . . 1 . . . . . . . . Garrison Access 8 | . . . . . . 3 . 1 . . . . . . . . . 4 Terminal Hacks 45 | . 5 . 5 . 3 6 . . . 1 . . 5 . . 19 . 1 Record 6 | . . . . . . . . . . . . . . . . 6 . . Part Schematic 4 | . . . . . . . . . . . . . . . . 4 . . Robot Schematic 7 | . . . 1 . . . . . . . . . . . . 6 . . Robot Analysis 1 | . 1 . . . . . . . . . . . . . . . . . Prototype ID Bank 5 | . 2 . . . . . . . . . . . . . . 3 . . Open Door 3 | . . . . . . 3 . . . . . . . . . . . . Level Access Points 1 | . . . . . . . . . . . . . 1 . . . . . Branch Access Points 4 | . . . 1 . 1 . . . . . . . 1 . . . . 1 Terminal Index 2 | . 1 . . . . . . . . 1 . . . . . . . . Alert Level 2 | . . . 1 . . 1 . . . . . . . . . . . . Unreport Threat 6 | . . . . . 1 2 . . . . . . 3 . . . . . Locate Traps 1 | . . . 1 . . . . . . . . . . . . . . . Patrol Status 1 | . 1 . . . . . . . . . . . . . . . . . Hauler Manifests 2 | . . . 1 . 1 . . . . . . . . . . . . . Fabricator Hacks 2 | . . . . . . . . . . . . . 2 . . . . . Load Schematic 1 | . . . . . . . . . . . . . 1 . . . . . Build 1 | . . . . . . . . . . . . . 1 . . . . . Repair Station Hacks 5 | . 2 . . . . 3 . . . . . . . . . . . . Scan Component 3 | . 1 . . . . 2 . . . . . . . . . . . . Repair 2 | . 1 . . . . 1 . . . . . . . . . . . . Recycling Unit Hacks . | . . . . . . . . . . . . . . . . . . . Scanalyzer 9 | . . . 2 . 7 . . . . . . . . . . . . . Insert Component 4 | . . . 1 . 3 . . . . . . . . . . . . . Analyze 5 | . . . 1 . 4 . . . . . . . . . . . . . Garrison Access Hacks 6 | . . . . . . 2 . 1 . . . . . . . . . 3 Unlock Access 1 | . . . . . . 1 . . . . . . . . . . . . Seal Access 2 | . . . . . . . . 1 . . . . . . . . . 1 Coupler Status 3 | . . . . . . 1 . . . . . . . . . . . 2 Unauthorized Hacks 25 | . 6 . 4 . 2 2 . . . 1 2 . 3 . . . . 5 Terminals 13 | . 4 . 3 . 2 2 . . . . . . 2 . . . . . Track 3 | . 1 . . . . 1 . . . . . . 1 . . . . . Assimilate 2 | . . . 1 . . 1 . . . . . . . . . . . . Botnet 5 | . 2 . 2 . 1 . . . . . . . . . . . . . Operators 3 | . 1 . . . 1 . . . . . . . 1 . . . . . Fabricators 5 | . . . . . . . . . . 1 . . 1 . . . . 3 Report 1 | . . . . . . . . . . . . . . . . . . 1 Haulers 4 | . . . . . . . . . . 1 . . 1 . . . . 2 Repair Stations . | . . . . . . . . . . . . . . . . . . . Recycling Units 6 | . 2 . 1 . . . . . . . 2 . . . . . . 1 Monitor 2 | . . . . . . . . . . . 1 . . . . . . 1 Mask 1 | . . . . . . . . . . . 1 . . . . . . . Tunnel 3 | . 2 . 1 . . . . . . . . . . . . . . . Scanalyzers . | . . . . . . . . . . . . . . . . . . . Garrison Access 1 | . . . . . . . . . . . . . . . . . . 1 Eject 1 | . . . . . . . . . . . . . . . . . . 1 Data Cores Recovered . | . . . . . . . . . . . . . . . . . . . Used . | . . . . . . . . . . . . . . . . . . . Hacking Detections 39 | . 4 . 4 . 4 7 . 4 . 5 2 . 5 . . . . 4 Full Trace Events 4 | . . . . . . 1 . . . 1 . . 1 . . . . 1 Feedback Events . | . . . . . . . . . . . . . . . . . . . Feedback Blocked . | . . . . . . . . . . . . . . . . . . . Robot Schematics Acquired 7 | . . . 1 . . . . . . . . . . . . 6 . . Robots Built 1 | . . . . . . . . . . . . . 1 . . . . . Matter 153 | . . . . . . . . . . . . . 153 . . . . . Time 81 | . . . . . . . . . . . . . 81 . . . . . Total Robot Build Rating 1 | . . . . . . . . . . . . . 1 . . . . . Part Schematics Acquired 7 | . . . 1 . 2 . . . . . . . . . . 4 . . Parts Built . | . . . . . . . . . . . . . . . . . . . Matter . | . . . . . . . . . . . . . . . . . . . Time . | . . . . . . . . . . . . . . . . . . . Total Part Build Rating . | . . . . . . . . . . . . . . . . . . . Parts Repaired 2 | . 1 . . . . 1 . . . . . . . . . . . . Time 102 | . 38 . . . . 64 . . . . . . . . . . . . Parts Recycled . | . . . . . . . . . . . . . . . . . . . Recycled Matter . | . . . . . . . . . . . . . . . . . . . Retrieved Matter . | . . . . . . . . . . . . . . . . . . . Retrieved Components . | . . . . . . . . . . . . . . . . . . . Parts Scanalyzed 4 | . . . 1 . 3 . . . . . . . . . . . . . Part Schematics Acquired 3 | . . . 1 . 2 . . . . . . . . . . . . . Parts Damaged . | . . . . . . . . . . . . . . . . . . . Bothacking | -11 -10 -10 -9 -9 -8 -8 -8 -7 -7 -7 -6 -6 -6 -6 -6 -6 -5 -5 ------------ Run | Scr Mat Min Mat Min Mat Sto Gar Fac Was Fac Fac Was Fac Low Low Dat Pro Fac Used RIF Installer 1 | . . . . . . . 1 . . . . . . . . . . . Robots Hacked . | . . . . . . . . . . . . . . . . . . . Non-combat . | . . . . . . . . . . . . . . . . . . . Combat . | . . . . . . . . . . . . . . . . . . . Robot Hacks Applied . | . . . . . . . . . . . . . . . . . . . Relay Couplers Released 7 | . . . . . . . 3 . . . . . . . . . . 4 Ejected 4 | . . . . . . . . . . . . . . . . . . 4 Machine Destruction 3 | . . . . . . . 3 . . . . . . . . . . . Robots Rewired 2 | . . . . . . . . . . . . . . . . . 2 . Allies Hacked . | . . . . . . . . . . . . . . . . . . . Hacks Repelled . | . . . . . . . . . . . . . . . . . . . Allies | -11 -10 -10 -9 -9 -8 -8 -8 -7 -7 -7 -6 -6 -6 -6 -6 -6 -5 -5 -------- Run | Scr Mat Min Mat Min Mat Sto Gar Fac Was Fac Fac Was Fac Low Low Dat Pro Fac Total Allies 13 | . . 4 . 1 . 1 . . . 3 . . 1 . . . 3 . Largest Group 3 | . . 3 3 1 . 1 . . . 3 . . 1 . . . 2 2 Highest-Rated Group 95 | . . 63 63 31 . 10 . . . 93 . . 14 . . . 95 78 Highest-Rated Ally 95 | . . 31 31 31 . 10 . . . 31 . . 14 . . . 95 49 Total Orders 10 | . . 1 . . . . . . . . 8 . 1 . . . . . STAY 1 | . . 1 . . . . . . . . . . . . . . . . AID 1 | . . . . . . . . . . . . . 1 . . . . . EXPLORE 7 | . . . . . . . . . . . 7 . . . . . . . RETURN 1 | . . . . . . . . . . . 1 . . . . . . . Ally Attacks 81 | . . 10 29 . . . . . . 21 . . . . . . 11 10 Total Damage 1308 | . . 73 375 . . . . . . 336 . . . . . . 325 199 Kills 14 | . . 2 7 . . . . . . 2 . . . . . . 2 1 Allies Corrupted . | . . . . . . . . . . . . . . . . . . . Allies Melted . | . . . . . . . . . . . . . . . . . . . Intel | -11 -10 -10 -9 -9 -8 -8 -8 -7 -7 -7 -6 -6 -6 -6 -6 -6 -5 -5 ------- Run | Scr Mat Min Mat Min Mat Sto Gar Fac Was Fac Fac Was Fac Low Low Dat Pro Fac Robot Analysis Total 1 | . 1 . . . . . . . . . . . . . . . . . Derelict Logs Recovered 3 | . . 1 . . . . . . . . . . . . 1 . 1 . Drone Launches 9 | . . . . . . . . . . . 9 . . . . . . . Drone Recoveries 7 | . . . . . . . . . . . 7 . . . . . . . Exploration | -11 -10 -10 -9 -9 -8 -8 -8 -7 -7 -7 -6 -6 -6 -6 -6 -6 -5 -5 ------------- Run | Scr Mat Min Mat Min Mat Sto Gar Fac Was Fac Fac Was Fac Low Low Dat Pro Fac Turns Passed 20985 | 91 1027 784 1296 758 634 1316 602 730 271 2225 2067 124 4007 804 807 111 1155 2176 Spaces Moved 9628 | 45 485 448 555 387 341 527 325 423 158 1252 721 79 1275 481 525 80 540 981 Core 61 | . . . . . . . . . . . . . 61 . . . . . Treads 2118 | . 434 448 555 386 . . . . . . . . 18 . . . 155 122 Legs 96 | 45 51 . . . . . . . . . . . . . . . . . Wheels 7353 | . . . . 1 341 527 325 423 158 1252 721 79 1196 481 525 80 385 859 Hover . | . . . . . . . . . . . . . . . . . . . Flight . | . . . . . . . . . . . . . . . . . . . Fastest Speed 95 | 120 120 160 160 95 110 105 105 130 115 115 145 145 135 135 135 140 140 115 Average Speed 155 | 120 157 160 160 159 110 109 123 130 118 126 150 145 239 140 135 140 174 153 Slowest Speed 1950 | 120 200 160 260 160 120 135 150 165 130 145 160 145 1950 150 150 140 260 260 Overloaded Moves . | . . . . . . . . . . . . . . . . . . . Propulsion Burnouts . | . . . . . . . . . . . . . . . . . . . Robots Hopped . | . . . . . . . . . . . . . . . . . . . Cave-ins Triggered 1 | . . . . . . . . . . . . . . . . . . 1 Exploration Rate (%) 49 | 3 56 82 58 62 27 77 62 10 81 32 18 71 25 54 64 69 68 22 Regions Visited 18 Branch Regions 7 Pre-discovered Areas 5 | . 2 . 1 . . . . . . . . . . . 1 1 . . Known Exits Taken 5 | . . . 1 . 1 1 . . . . . . 1 . . . 1 . Unknown Exits Taken 8 | 1 1 1 . 1 . . . . . 1 . . . 1 1 1 . . Scrap Searched 8 | . . 1 . 1 . . . . . . . . . 2 2 . 2 . Spaces Dug 75 | . . . . 7 . 22 12 . . 3 . . 1 . 1 . . 29 Terrain Destroyed 424 | . 3 . . 18 12 22 26 . . 60 15 . 1 1 4 . 34 228 Melee 3 | . . . . . . . . . . 1 . . 1 . 1 . . . Projectile 77 | . . . . . . . . . . 30 15 . . 1 3 . 2 26 AOE 344 | . 3 . . 18 12 22 26 . . 29 . . . . . . 32 202 Terrain Rammed . | . . . . . . . . . . . . . . . . . . . Walls Destroyed . | . . . . . . . . . . . . . . . . . . . Machines Disabled . | . . . . . . . . . . . . . . . . . . . Actions | -11 -10 -10 -9 -9 -8 -8 -8 -7 -7 -7 -6 -6 -6 -6 -6 -6 -5 -5 --------- Run | Scr Mat Min Mat Min Mat Sto Gar Fac Was Fac Fac Was Fac Low Low Dat Pro Fac Total 14178 | 65 660 476 898 477 575 1116 459 546 217 1683 1627 81 1996 571 583 79 659 1410 Wait 2854 | . 75 4 215 51 179 443 20 59 28 149 826 . 511 65 19 . 38 172 Move 9613 | 44 484 447 554 386 340 527 324 423 157 1251 721 78 1274 480 524 79 539 981 Hop . | . . . . . . . . . . . . . . . . . . . Pick Up 183 | 2 14 3 23 3 15 5 7 12 1 19 12 . 27 2 5 . 3 30 Fast Attach 152 | 1 2 . 9 1 2 18 2 9 8 30 9 . 15 2 2 . 6 36 Attach 111 | 1 5 . 10 2 2 1 10 3 2 16 3 . 21 1 3 . 10 21 Detach 61 | 1 1 . 1 . . . 1 3 3 21 5 . 9 . 1 . 1 14 Swap 101 | 2 13 . 10 4 6 9 10 . . 11 4 . 8 2 7 . 1 14 Drop 256 | 3 14 . 35 2 17 23 3 18 10 32 15 . 31 3 7 . 6 37 Fire 751 | 11 50 19 39 22 14 74 41 19 8 145 32 3 98 16 14 . 41 105 Melee 4 | . . . . . . . 1 . . 1 . . 1 . 1 . . . Ram . | . . . . . . . . . . . . . . . . . . . Kick . | . . . . . . . . . . . . . . . . . . . Crush 14 | . 2 3 2 6 . . . . . . . . 1 . . . . . Escape Stasis 64 | . . . . . . 16 40 . . 8 . . . . . . . . Rewire 14 | . . . . . . . . . . . . . . . . . 14 . Trap . | . . . . . . . . . . . . . . . . . . . Miscellaneous . | . . . . . . . . . . . . . . . . . . . Route ------- -11/Scrapyard -10/Materials (discovered 4 exits: *Mat x2 / [*Min x2]) -10/Mines (discovered 2 exits: *Mat / [*Exi]) -9/Materials -9/Mines (discovered 2 exits: *Mat / [*Zio]) -8/Materials (discovered 2 exits: *Sto x2) -8/Storage -8/Garrison (discovered 2 exits: *Fac x2) -7/Factory -7/Waste -7/Factory -6/Factory -6/Waste -6/Factory (discovered 8 exits: *Fac x4 / *Low x2 / Ext x2) -6/Lower Caves -6/Lower Caves (discovered 2 exits: *Fac / *Dat) -6/Data Miner -5/Proximity Caves -5/Factory (discovered 2 exits: Upp x2) History --------- Turn | Location | Event 19 | -11/Scrapyard | Discovered new exit (range 3) 92 | -11/Scrapyard | Entered Materials 211 | -10/Materials | Discovered new exit (range 11) 318 | -10/Materials | Build established: Mutant 408 | -10/Materials | Discovered new exit (range 13) 593 | -10/Materials | Discovered new exit (range 15) 1077 | -10/Materials | Repaired Imp. Heat Sink 1096 | -10/Materials | Discovered new exit (range 8) 1119 | -10/Materials | Entered Mines 1126 | -10/Mines | Learned Materials emergency access door positions 1247 | -10/Mines | Deemed a non-threat by the Exiles lab entrance 1249 | -10/Mines | Discovered new exit (range 5) 1506 | -10/Mines | Discovered new exit (range 8) 1523 | -10/Mines | Assisted by bots powering up and referring to "LRC-V3" 1748 | -10/Mines | Escorted by a lone wolf Derelict 1903 | -10/Mines | Entered Materials 1903 | -9/Materials | Accompanied by 3 allies 1903 | -9/Materials | Evolved 2 slots: Weapon x2 2063 | -9/Materials | Discovered new exit (range 16) 2204 | -9/Materials | Build established: Scavenger-Gunner 2476 | -9/Materials | Identified exit to Mines 3126 | -9/Materials | Build established: Tank 3199 | -9/Materials | Entered Mines 3206 | -9/Mines | Received a Rocket Launcher from a helpful Derelict 3438 | -9/Mines | Discovered new exit (range 8) 3645 | -9/Mines | Received a Mining Laser from a helpful Derelict 3742 | -9/Mines | A Derelict revealed a hidden shortcut to a safe place 3957 | -9/Mines | Entered Materials 3957 | -8/Materials | Evolved 2 slots: Utility x2 3996 | -8/Materials | Identified exit to Storage 4591 | -8/Materials | Entered Storage 4936 | -8/Storage | Garrison activated, responded to threat 5192 | -8/Storage | Repaired Broken Imp. Assault Rifle 5907 | -8/Storage | Identified exit to Garrison 5907 | -8/Storage | Entered Garrison 6010 | -8/Garrison | Triggered checkpoint 6097 | -8/Garrison | Discovered new exit (range 9) 6196 | -8/Garrison | Triggered checkpoint 6257 | -8/Garrison | Lost 5 parts (1n2u2w) 6306 | -8/Garrison | Discovered new exit (range 15) 6336 | -8/Garrison | Installed Relay Interface Framework 6366 | -8/Garrison | Triggered checkpoint 6419 | -8/Garrison | Garrison Relay disabled 6509 | -8/Garrison | Entered Factory 6509 | -7/Factory | Evolved 2 slots: Utility x2 7239 | -7/Factory | Sucked down chute 7239 | -7/Factory | Entered Waste 7245 | -7/Waste | Found Prototype Launcher 7245 | -7/Waste | Identified Tesla Bomb Launcher 7253 | -7/Waste | Spotted C-40 Crusher 7278 | -7/Waste | Destroyed C-40 Crusher 7289 | -7/Waste | Found Damper Plating 7314 | -7/Waste | Spotted C-40 Crusher 7316 | -7/Waste | Destroyed C-40 Crusher 7328 | -7/Waste | Spotted C-40 Crusher 7353 | -7/Waste | Crushed by Compactor (1 part destroyed, 1 dropped) 7354 | -7/Waste | Destroyed C-40 Crusher 7358 | -7/Waste | Spotted C-40 Crusher 7397 | -7/Waste | Spotted C-40 Crusher 7399 | -7/Waste | Spotted C-40 Crusher 7467 | -7/Waste | Crushed by Compactor (1 part destroyed, 1 dropped) 7493 | -7/Waste | Discovered new exit (range 11) 7510 | -7/Waste | Entered Factory 8690 | -7/Factory | Cargo convoy interrupted 8782 | -7/Factory | Found Prototype Hackware 8786 | -7/Factory | Destroyed 12 combat bots 8791 | -7/Factory | Lost 8 parts (1p1n1u5w) 8858 | -7/Factory | Found Prototype Device 8858 | -7/Factory | Identified EM Disruption Field 9134 | -7/Factory | Build established: Scavenger-Skirmisher 9594 | -7/Factory | Build established: Tank 9605 | -7/Factory | Core integrity fell below 50% 9712 | -7/Factory | Discovered new exit (range 7) 9735 | -7/Factory | Entered another Factory area 9735 | -6/Factory | Evolved 2 slots: Power x1, Utility x1 11100 | -6/Factory | Cargo convoy interrupted 11802 | -6/Factory | Sucked down chute 11802 | -6/Factory | Entered Waste 11826 | -6/Waste | Spotted C-40 Crusher 11838 | -6/Waste | Spotted C-40 Crusher 11838 | -6/Waste | Spotted C-40 Crusher 11843 | -6/Waste | Spotted C-40 Crusher 11852 | -6/Waste | Spotted C-40 Crusher 11885 | -6/Waste | Spotted C-40 Crusher 11912 | -6/Waste | Discovered new exit (range 11) 11926 | -6/Waste | Entered Factory 12135 | -6/Factory | Identified Exp. Hacking Suite 12139 | -6/Factory | Identified exit to Lower Caves 12139 | -6/Factory | Identified exit to Extension 12379 | -6/Factory | Garrison activated, responded to threat 12496 | -6/Factory | Garrison activated, responded to threat 12834 | -6/Factory | Fabricated M-13 Machinist (x1) 13035 | -6/Factory | Discovered new exit (range 15) 13672 | -6/Factory | Found Prototype Processor 13778 | -6/Factory | Garrison activated, responded to threat 14275 | -6/Factory | Identified exit to Factory 15933 | -6/Factory | Entered Lower Caves 16124 | -6/Lower Caves | Identified Exp. Targeting Computer 16201 | -6/Lower Caves | Attracted the attention of an 0b10 checkpoint 16414 | -6/Lower Caves | Build established: Gunner 16622 | -6/Lower Caves | Discovered new exit (range 8) 16737 | -6/Lower Caves | Entered another Lower Caves area 16834 | -6/Lower Caves | F-cell Engine stolen by Master Thief 16948 | -6/Lower Caves | Discovered exit to Factory (range 9) 17295 | -6/Lower Caves | Discovered new exit (range 5) 17457 | -6/Lower Caves | Learned location of Extension (-6) 17544 | -6/Lower Caves | Entered Data Miner 17544 | -6/Data Miner | Discovered new exit (range 6) 17571 | -6/Data Miner | Met Data Miner 17598 | -6/Data Miner | Learned location of Section 7 (-2) 17598 | -6/Data Miner | Acquired the access code to Warlord's prototype stash 17620 | -6/Data Miner | Received God Mode back door access code from Data Miner 17655 | -6/Data Miner | Entered Proximity Caves 17695 | -5/Proximity Caves | Escorted by Enhanced Grunt 17695 | -5/Proximity Caves | Destroyed 8 combat bots 17867 | -5/Proximity Caves | Attacked by a faux Warlord 18051 | -5/Proximity Caves | Build established: Scavenger-Gunner 18150 | -5/Proximity Caves | Learned Factory emergency access door positions 18209 | -5/Proximity Caves | Acquired the password to a Derelict Tinkerer's latest research 18326 | -5/Proximity Caves | Attracted the attention of an 0b10 outpost 18354 | -5/Proximity Caves | Caught by Unaware searching for contraband prototypes 18386 | -5/Proximity Caves | Build established: Scavenger-Tank 18400 | -5/Proximity Caves | Lost 7 parts (2p1n2u2w) 18401 | -5/Proximity Caves | Destroyed 12 combat bots 18461 | -5/Proximity Caves | Discovered exit to Factory (range 10) 18810 | -5/Proximity Caves | Entered Factory 18810 | -5/Factory | Accompanied by 2 allies 18810 | -5/Factory | Evolved 2 slots: Weapon x2 18951 | -5/Factory | Incoming investigation squad redirected 19645 | -5/Factory | Build established: Scavenger-Executioner 20120 | -5/Factory | Incoming investigation squad redirected 20337 | -5/Factory | Cargo convoy interrupted 20354 | -5/Factory | Incoming assault squad redirected 20377 | -5/Factory | System corruption reached 10% 20405 | -5/Factory | Core integrity fell below 50% 20438 | -5/Factory | Lost 14 parts (1p1n3u9w) 20459 | -5/Factory | Destroyed 15 combat bots 20460 | -5/Factory | Crushed by falling debris 20466 | -5/Factory | Found Prototype Device 20477 | -5/Factory | Found Prototype Device 20477 | -5/Factory | Identified Exp. Shock Absorption System (x2) 20481 | -5/Factory | Found Prototype Launcher 20481 | -5/Factory | Identified Point Singularity Launcher 20508 | -5/Factory | Found Prototype Processor 20508 | -5/Factory | Identified Exp. Signal Interpreter 20519 | -5/Factory | Lost 5 parts (1p3u1w) 20532 | -5/Factory | Found Exp. Signal Interpreter 20776 | -5/Factory | Identified exit to Upper Caves 20910 | -5/Factory | First assault squad dispatched 20936 | -5/Factory | Incoming assault squad redirected 20937 | -5/Factory | Incoming assault squad redirected 20945 | -5/Factory | Core integrity fell below 20% 20982 | -5/Factory | High security lockdown imminent 20986 | -5/Factory | Self-destructed Last Messages --------------- 20977_ The unstable cave ceiling collapses. 20978_ K-01 Serf collects debris. 20979_ Slug penetrates Wall. 20982_ Power Conduit explodes. 20982_ G-50 Soldier destroyed. 20982_ Power Conduit explodes. 20982_ Destroyed Plasma Rifle. 20982_ L-41 Fighter destroyed. 20982_ H-66 Slayer destroyed. 20982_ Destroyed Lgt. Deuterium Engine. 20982_ Destroyed Unknown Wheel. 20982_ Destroyed Unknown Device. 20982_ G-50 Soldier destroyed. 20982_ ALERT: High security lockdown imminent, T-100. 20982_ Power Conduit explodes. 20982_ Destroyed Structural Scanner. 20982_ M-28 Smith destroyed. 20982_ U-05 Engineer destroyed. 20983_ ALERT: Security rotation in progress. 20984_ Imp. Quantum Reactor destroyed. Map ----- +----------------------------------------------------+ | ?????????????????????????????????????????????????? | | ?????????????????????????????????????????????????? | | ?????????????????????????????????????????????????? | | ?????????????????????????????????????????????????? | | ?????????????????????????????????????????????????? | | ?????????????????????????????????????????????????? | | ?????????????????????????????????????????????????? | | ?????????????????????????????????????????????????? | | ?????????????????????????????????????????????????? | | ?????????????????????????????????????????????????? | | ???????????????????????## ?????????????????????? | | ??????????????????????# ???????????????????? | | ??????????????????????# ????????????????? | | ??????????????????????# = ??????????????? | | ?????????????????????## % *% ????????????? | | ?????????????????????# ????????????? | | ?????????????????????# g ???????????? | | ?????????????????????# ???????????? | | ?????????????????????# ??????????? | | ?????????????????????# g ??????????? | | ?????????????????????# ??????????? | | ????????????????????## ! ?????????? | | ????????????????????# !=% ;?????????? | | ?????????????????????# b * #????????? | | ?????????????????????# % * ????????????? | | ??????????????????????# @ #??????????????????? | | ??????????????????????# kk#??????????????????? | | ??????????????????????## ;#??????????????????? | | ?????????????########??# %%##############?????? | | ?????????????# # %% #?????? | | ???????????????? """" ; #?????? | | ???????????????? """" # % ######? | | ?????????????????""""??# # #? | | ?????????????????""????# # #? | | ???????????????????????######## # ! #? | | ??????????????????????????????# # #? | | ??????????????????????????????# # ## | | ??????????????????????????????# # # | | ??????????????????????????????# + + | | ??????????????????????????????# # # | | ??????????????????????????????# # # | | ??????????????????????????????# ############# | | ??????????????????????????????# # # | | ???????????????????????######## # # | | ???????????????????? + """" "????# | | ???????????????????? # """" "????#! | | ?????????????????? """" # """" ?????## | | ????????????????????? ""F" #?"""" ??????? | | ??????????????????????""" """ #?""""???????? | | ???????????????????????"" """ #??"""???????? | +----------------------------------------------------+ Best States ------------- Heat Dissipation 124 Coolant Potential 65 Energy Generation 53 Energy Capacity 900 Matter Stores 700 Matter Capacity 700 Sight Range 18 Robot Scan Range 16 Terrain Scan Range 16 Terrain Scan Density 10 Additional Mass Support 25 Armor Coverage 1600 Resistance: KI 25 Resistance: TH 15 Resistance: EX 50 Resistance: EM 90 Propulsion Shielding 66 Utility Shielding 66 Weapon Cycling 15 Evasion (%) 55 Targeting Accuracy 12 Target Analysis 6 Recoil Reduction 2 Matter Filtering 30 Salvage Targeting 4 Offensive Hacking 26 Defensive Hacking 10 Item Schematics ----------------- Lgt. Assault Rifle | -9/Materials | Scanalyzed Shield Generator | -8/Materials | Scanalyzed Arm. Treads | -8/Materials | Scanalyzed Combat Drone Bay | -6/Data Miner | Free Lgt. Regenerative Plating | -6/Data Miner | Free Exp. Sensor Array | -6/Data Miner | Free Cloaking Device | -6/Data Miner | Free Robot Schematics ------------------ M-13 Machinist | -9/Materials | Hacked S-27 Virus | -6/Data Miner | Free G-50 Soldier | -6/Data Miner | Free L-41 Fighter | -6/Data Miner | Free H-66 Slayer | -6/Data Miner | Free I-36 Angel | -6/Data Miner | Free I-47 Archangel | -6/Data Miner | Free Fabricated ------------ M-13 Machinist | x1 | -6/Factory Alien Tech Used ----------------- None Achievements -------------- None Challenges ------------ None Game ------ Seed AlertInsulatedCannon Manual? 0 Play Time 02:02:29 Cumulative 2207.5 hours Start 2021.09.14 @ 00:47:05 End 2021.09.14 @ 03:03:13 Sessions 1 Manual Loads 0 Difficulty Rogue Special Mode None Game No. 2681 Rogue 2673 Adventurer 0 Explorer 8 Win Type - Total 255 Types 47/32/93/3/3/5/69/2/1 Lore% 99 Gallery% 99 Achievement% 100 Wizard Run 0 Options --------- ASCII 0 Keyboard 1 Movement Vi Keybinds 1 Fullscreen 1 Font 18/SmallcapsGlow Map View 76x50 Tactical HUD 1 Map Filters NONE Filters NONE Steam 1 RUN: 57d313a4-fa0a-45b8-8446-c733778bcfca